[Event "21st Open Gran Hotel Bali-A 2024"]
[Site "Benidorm"]
[Date "2024.11.30"]
[Round "3.1"]
[White "Luque Saiz, Andres"]
[Black "Albornoz Cabrera, Carlos Daniel"]
[Result "0-1"]
[ECO "B90"]
[WhiteElo "2343"]
[BlackElo "2572"]
[Annotator "TA"]
[PlyCount "78"]
[EventDate "2024.11.26"]
[EventType "swiss"]
[EventCountry "ESP"]
[SourceTitle "playchess.com"]
[Source "ChessBase"]
[SourceQuality "1"]
[TimeControl "5400+30"]

{[%evp 12,78,20,19,21,30,22,14,8,17,13,17,1,-7,10,0,0,0,0,0,0,0,0,-6,-14,-34,-31,-55,-23,-61,-45,-77,-77,-124,-127,-180,-156,-228,-195,-220,-220,-202,-211,-220,-216,-264,-228,-203,-168,-224,-239,-308,-307,-306,-305,-354,-355,-348,-289,-431,-406,-463,-453,-593,-584,-541,-529,-1337,-1316]} 1. e4 {[%emt 0:06:50]} c5 {[%emt 0:00:04]} 2. Nf3 {[%emt 0:00:18][%cal Bg1f3,Bf3d4,Bd4e2,Be2c3,Bc3d5][%mdl 32]} d6 {[%emt 0:00:04]} 3. d4 {[%emt 0:00:08]} cxd4 {[%emt 0:00:04]} 4. Nxd4 {[%emt 0:00:04]} Nf6 {[%emt 0:00:03]} 5. Nc3 {[%emt 0:00:03]} a6 {[%emt 0:00:03]} 6. h3 {[%emt 0:00:37]} e5 {[%emt 0:00:04]} 7. Nde2 {[%emt 0:00:06]} h5 {[%emt 0:00:18]} 8. Bg5 {[%emt 0:00:08]} Be6 {[%emt 0:00:17]} 9. Bxf6 {[%emt 0:00:09]} Qxf6 {[%emt 0:00:05] The position is equal.} 10. Nd5 {[%emt 0:00:02]} Qd8 {[%emt 0:00:07]} 11. Nec3 {[%emt 0:00:03]} g6 {[%emt 0:00:13]} 12. Ne3 {[%emt 0:03:54]} Nc6 {[%emt 0:16:45][%cal Bb8c6,Bc6e7,Be7d5,Bd5c3][%mdl 32]} 13. Ncd5 {[%emt 0:01:49]} Bh6 {[%emt 0:01:23]} 14. c3 {[%emt 0:01:15]} O-O {[%emt 0:06:45]} 15. a4 {[%emt 0:13:30]} Bxe3 {[%emt 0:10:20]} 16. Nxe3 {[%emt 0:00:55]} Qb6 {[%emt 0:00:48]} 17. b4 {[%emt 0:17:34][%cal Of1c4]} (17. Qxd6 Qxb2 18. Qa3 Qxa3 19. Rxa3 Na5 $14) 17... Ne7 {[%emt 0:10:41]} 18. Qd2 {[%emt 0:12:43]} Qc6 {[%emt 0:03:33]} 19. Be2 {[%emt 0:00:34]} d5 {[%emt 0:07:33]} 20. exd5 {[%emt 0:01:53]} Nxd5 {[%emt 0:00:05]} 21. Bf3 {[%emt 0:04:15][%cal Re3d5]} Qxc3 {[%emt 0:00:47] Black is more active. Black converts the advantage convincingly.} 22. Qxc3 {[%emt 0:08:26]} ({White should try} 22. Nxd5 Qxd2+ (22... Qxa1+ 23. Ke2 $11) 23. Kxd2) 22... Nxc3 $17 {[%emt 0:00:02]} 23. Ra3 {[%emt 0:00:14]} (23. Bxb7 $17 Ra7 24. Bf3) 23... e4 $1 $19 {[%emt 0:01:02]} 24. Bxh5 {[%emt 0:02:37] [#]} (24. Rxc3 $17 exf3 25. gxf3) 24... Rac8 $1 {[%emt 0:11:26]} 25. Be2 {[%emt 0:08:38]} Rfd8 {[%emt 0:00:22] ...Nb1 is the strong threat.} 26. Ra1 {[%emt 0:07:35] White is weak on the light squares} Rd4 {[%emt 0:02:46]} 27. b5 {[%emt 0:00:03]} a5 {[%emt 0:00:41]} (27... Nxa4 28. bxa6 bxa6 29. Bxa6 $11) (27... Rxa4 28. Rxa4 Nxa4 29. bxa6 $17) 28. f3 {[%emt 0:01:21]} Nxe2 {[%emt 0:06:09]} 29. Kxe2 {[%emt 0:00:05]} exf3+ {[%emt 0:01:41]} 30. gxf3 {[%emt 0:04:27]} (30. Kxf3 $142 Rc3 31. Rhc1) 30... Bb3 {[%emt 0:00:21]} 31. Rhc1 {[%emt 0:01:14]} Rxc1 {[%emt 0:02:03]} 32. Rxc1 {[%emt 0:00:03]} Bxa4 {[%emt 0:00:04][%mdl 4096] Endgame. KRB-KRN} ({Less strong is} 32... Rxa4 33. Rc7 $19) 33. Rc8+ {[%emt 0:04:40]} Kg7 {[%emt 0:00:09]} 34. b6 {[%emt 0:00:02]} Bc6 {[%emt 0:04:00]} 35. Ng4 {[%emt 0:00:42]} (35. Nc2 {keeps fighting.} Rd6 36. Ke3) 35... Rb4 {[%emt 0:04:12]} 36. Ra8 {[%emt 0:00:43]} a4 {[%emt 0:03:35] Black is clearly winning.} ({Don't play} 36... Rxb6 37. Rxa5 Rb2+ 38. Ke3 $19) 37. Ne5 {[%emt 0:00:28]} Bb5+ {[%emt 0:01:05]} (37... Rxb6 $2 38. Nxc6 Rxc6 (38... bxc6 $2 39. Rxa4 c5 40. h4 $17) 39. Rxa4 $19) 38. Kd2 {[%emt 0:00:47]} Ba6 {[%emt 0:00:07][%cal Oa4a3] [#] White must now prevent ...a3!} 39. Nc6 {[%emt 0:00:33]} Rxb6 {[%emt 0:00:26] Weighted Error Value: White=0.41/Black=0.07 (flawless) .  Mistake:       	White=5     	---        Inaccurate:     	White=4     	Black=1      OK:         	White=11    	Black=19     Strong:       	---       	Black=1} (39... bxc6 40. Rxa6 Kf6 41. b7 $17) 0-1

[Event "21st Open Gran Hotel Bali-A 2024"]
[Site "Benidorm"]
[Date "2024.11.30"]
[Round "3.2"]
[White "Amar, Elham"]
[Black "Suder, Jakub"]
[Result "1/2-1/2"]
[ECO "C02"]
[WhiteElo "2529"]
[BlackElo "2340"]
[Annotator "ChessBase"]
[PlyCount "43"]
[EventDate "2024.11.26"]
[EventType "swiss"]
[EventCountry "ESP"]
[SourceTitle "playchess.com"]
[Source "ChessBase"]
[SourceQuality "1"]
[TimeControl "5400+30"]

1. e4 {[%emt 0:00:03]} c5 {[%emt 0:00:07]} 2. Nf3 {[%emt 0:00:04]} e6 {[%emt 0:00:03]} 3. c3 {[%emt 0:00:07]} d5 {[%emt 0:00:05]} 4. e5 {[%emt 0:00:05]} Bd7 {[%emt 0:01:49]} 5. d4 {[%emt 0:00:21]} Qb6 {[%emt 0:00:06]} 6. Bd3 {[%emt 0:00:42]} Bb5 {[%emt 0:00:53]} 7. dxc5 {[%emt 0:00:08]} Bxc5 {[%emt 0:00:09]} 8. b4 {[%emt 0:00:03]} Bxd3 {[%emt 0:00:06]} 9. Qxd3 {[%emt 0:00:06]} Bf8 {[%emt 0:00:04]} 10. O-O {[%emt 0:01:03]} Nc6 {[%emt 0:02:47]} 11. Be3 {[%emt 0:12:22]} Qc7 {[%emt 0:00:14]} 12. Na3 {[%emt 0:00:04]} a6 {[%emt 0:03:10]} 13. c4 {[%emt 0:03:55]} Nxb4 {[%emt 0:13:21]} 14. Qb3 {[%emt 0:00:17]} Nh6 {[%emt 0:08:13]} 15. Rac1 {[%emt 0:05:50]} d4 {[%emt 0:05:07]} 16. Bxh6 {[%emt 0:07:13]} gxh6 {[%emt 0:00:13]} 17. c5 {[%emt 0:00:01]} Nc6 {[%emt 0:03:21]} 18. Rfe1 {[%emt 0:04:22]} Rd8 {[%emt 0:01:56]} 19. Qd3 {[%emt 0:00:21]} Rd5 {[%emt 0:01:16]} 20. Nc4 {[%emt 0:01:40]} Bxc5 {[%emt 0:04:16]} 21. Qe4 {[%emt 0:01:27]} Qe7 {[%emt 0:07:26]} 22. Qf4 {[%emt 0:03:10]} 1/2-1/2

[Event "21st Open Gran Hotel Bali-A 2024"]
[Site "Benidorm"]
[Date "2024.11.30"]
[Round "3.3"]
[White "Ashwath, R.."]
[Black "Solodovnichenko, Yuri"]
[Result "1/2-1/2"]
[ECO "A21"]
[WhiteElo "2333"]
[BlackElo "2503"]
[Annotator "TA"]
[PlyCount "58"]
[EventDate "2024.11.26"]
[EventType "swiss"]
[EventCountry "ESP"]
[SourceTitle "playchess.com"]
[Source "ChessBase"]
[SourceQuality "1"]
[TimeControl "5400+30"]

{[%evp 9,58,0,17,-35,8,8,12,0,0,0,0,0,0,-14,-2,-3,-10,-52,0,-10,0,0,0,0,30,41,28,50,35,42,46,56,61,6,10,0,8,7,3,6,6,0,24,24,78,89,95,0,0,0,136]} 1. c4 {[%emt 0:10:39]} e5 {[%emt 0:00:47]} 2. Nc3 {[%emt 0:00:36]} Bb4 {[%emt 0:00:35]} 3. Qb3 {[%emt 0:00:20]} a5 {[%emt 0:00:30]} 4. e3 {[%emt 0:05:23]} Nf6 {[%emt 0:00:54]} 5. Nge2 {[%emt 0:00:40]} O-O {[%emt 0:01:24]} 6. g3 {[%emt 0:03:45]} (6. a3 $11 Be7 7. g3) 6... Na6 {[%emt 0:06:41]} 7. Bg2 {[%emt 0:03:03] Wards off d5} Re8 {[%emt 0:05:54]} 8. d3 {[%emt 0:04:06]} Nc5 {[%emt 0:21:08]} 9. Qc2 {[%emt 0:01:13]} d5 {[%emt 0:04:18]} 10. cxd5 {[%emt 0:02:39]} c6 {[%emt 0:02:02]} 11. a3 {[%emt 0:20:01]} Bxc3+ {[%emt 0:00:14]} 12. Nxc3 {[%emt 0:00:26]} a4 {[%emt 0:01:50]} 13. O-O {[%emt 0:03:39]} cxd5 {[%emt 0:01:12]} 14. Nxd5 {[%emt 0:03:23]} Nb3 {[%emt 0:00:12]} 15. Nxf6+ {[%emt 0:00:12]} Qxf6 {[%emt 0:05:17]} 16. Rb1 {[%emt 0:00:09]} Bg4 {[%emt 0:02:39]} 17. Bd2 {[%emt 0:04:32]} Be2 {[%emt 0:03:51]} 18. Rfe1 {[%emt 0:00:56]} Bxd3 {[%emt 0:02:01]} 19. Qxd3 {[%emt 0:00:12]} Red8 $1 {[%emt 0:00:32] [#]} 20. Qb5 {[%emt 0:06:37]} Nxd2 {[%emt 0:10:08]} (20... Rxd2 21. Re2) 21. Rbd1 {[%emt 0:06:28]} (21. Rbc1 $1 $14) 21... e4 $11 {[%emt 0:01:49]} 22. Qxb7 {[%emt 0:00:40][%cal Od1d2] Rxd2! is the strong threat.} Rab8 $132 {[%emt 0:00:29][%mdl 2048] Black is not holding back} 23. Qa7 {[%emt 0:02:09][%cal Od1d2]} Rxb2 {[%emt 0:08:29] [#] Threatens to win with ...g5.} 24. Qxa4 {[%emt 0:03:50]} g6 {[%emt 0:01:24] Strongly threatening ...Kg7.} 25. Bxe4 {[%emt 0:03:33]} Kg7 {[%emt 0:00:02]} (25... Nxe4 $6 26. Rxd8+ Qxd8 27. Qxe4 $16) 26. Bg2 {[%emt 0:01:40]} Nc4 {[%emt 0:05:57]} 27. Rf1 $16 {[%emt 0:01:00] Hoping for Rxd8.} (27. Qxc4 $2 {is a self mate.} Qxf2+ 28. Kh1 Qxg2#) 27... Nd2 {[%emt 0:01:41]} 28. Rfe1 {[%emt 0:00:34]} Nc4 {[%emt 0:07:06]} 29. Rf1 {[%emt 0:00:03] Black must now prevent Rxd8.} (29. Qxc4 $2 {gets mated.} Qxf2+ 30. Kh1 Qxg2#) 29... Nd2 {[%emt 0:03:29] Weighted Error Value: White=0.18 (very precise) /Black=0.10 (very precise) .  Mistake:       	White=1     	Black=1      Inaccurate:     	White=1     	Black=3      OK:         	White=10    	Black=11     Best:        	White=4     	Black=2      Strong:       	---       	Black=1} 1/2-1/2

[Event "21st Open Gran Hotel Bali-A 2024"]
[Site "Benidorm"]
[Date "2024.11.30"]
[Round "3.4"]
[White "Kvaloy, Aksel Bu"]
[Black "Ibanez Aullana, Ramon"]
[Result "1/2-1/2"]
[ECO "C43"]
[WhiteElo "2502"]
[BlackElo "2298"]
[Annotator "RC"]
[PlyCount "117"]
[EventDate "2024.11.26"]
[EventType "swiss"]
[EventCountry "ESP"]
[SourceTitle "playchess.com"]
[Source "ChessBase"]
[SourceQuality "1"]
[TimeControl "5400+30"]

1. e4 {[%emt 0:00:25]} e5 {[%emt 0:06:30]} 2. Nf3 {[%emt 0:00:16]} Nf6 {[%emt 0:01:32]} 3. d4 {[%emt 0:00:42]} Nxe4 {[%emt 0:00:41]} 4. Bd3 {[%emt 0:01:11]} Nc6 {[%emt 0:01:12]} 5. Bxe4 {[%emt 0:10:19]} d5 {[%emt 0:00:39]} 6. Nxe5 {[%emt 0:00:54]} dxe4 {[%emt 0:05:59]} 7. Nxc6 {[%emt 0:01:11]} bxc6 {[%emt 0:00:11]} 8. O-O {[%emt 0:00:17]} Bd6 {[%emt 0:01:02]} 9. Nc3 {[%emt 0:03:32]} O-O {[%emt 0:01:17]} 10. Nxe4 {[%emt 0:06:22]} Bxh2+ {[%emt 0:01:16]} 11. Kxh2 {[%emt 0:00:05]} Qh4+ {[%emt 0:00:08]} 12. Kg1 {[%emt 0:00:03]} Qxe4 {[%emt 0:00:05]} 13. Re1 {[%emt 0:00:15]} Qh4 {[%emt 0:00:54]} 14. Qd3 {[%emt 0:04:11]} Be6 {[%emt 0:04:06]} 15. c4 {[%emt 0:02:30]} Rfe8 {[%emt 0:04:06]} 16. Bd2 {[%emt 0:02:02]} Rad8 {[%emt 0:02:39]} 17. Bc3 {[%emt 0:00:42]} Qg4 {[%emt 0:08:06]} 18. Re3 {[%emt 0:04:23]} Bf5 {[%emt 0:01:51]} 19. Rae1 {[%emt 0:01:55]} Rxe3 {[%emt 0:05:42]} 20. Qxe3 {[%emt 0:00:08]} h5 {[%emt 0:00:26]} 21. Qe5 {[%emt 0:03:55]} Rd6 {[%emt 0:03:40]} 22. f3 {[%emt 0:09:23]} Qg5 {[%emt 0:06:51]} 23. Qe7 {[%emt 0:02:34]} Qg6 {[%emt 0:11:47]} 24. Qxc7 {[%emt 0:04:49]} Re6 {[%emt 0:14:03]} 25. Rxe6 {[%emt 0:01:28]} Qxe6 {[%emt 0:01:00]} 26. Qd8+ {[%emt 0:01:58]} Kh7 {[%emt 0:00:17]} 27. Qg5 {[%emt 0:00:42]} Qg6 {[%emt 0:01:23]} 28. Qd2 {[%emt 0:02:20]} f6 {[%emt 0:03:45]} 29. d5 {[%emt 0:01:34]} cxd5 {[%emt 0:00:48]} 30. Qxd5 {[%emt 0:00:42]} h4 {[%emt 0:04:45]} 31. Qd2 {[%emt 0:21:36]} Bb1 {[%emt 0:03:45]} 32. a3 {[%emt 0:02:18]} h3 {[%emt 0:02:22]} 33. Bd4 {[%emt 0:00:29]} Ba2 {[%emt 0:01:58]} 34. Bxa7 {[%emt 0:03:46]} Bxc4 {[%emt 0:00:17]} 35. Bc5 {[%emt 0:03:36]} hxg2 {[%emt 0:01:34]} 36. Qxg2 {[%emt 0:00:27]} Qxg2+ {[%emt 0:00:41]} 37. Kxg2 {[%emt 0:00:01]} Kg6 {[%emt 0:00:21]} 38. Kf2 {[%emt 0:00:24]} Kf5 {[%emt 0:00:18]} 39. Ke3 {[%emt 0:00:09]} Ke5 {[%emt 0:00:29]} 40. Bf8 {[%emt 0:01:56]} g6 {[%emt 0:00:42]} 41. Be7 {[%emt 0:00:10]} Bb3 {[%emt 0:00:45]} 42. Bd8 {[%emt 0:00:08]} Ba4 {[%emt 0:00:42]} 43. Ba5 {[%emt 0:00:18]} g5 {[%emt 0:00:35]} 44. Bc3+ {[%emt 0:00:10]} Kf5 {[%emt 0:00:14]} 45. Ba5 {[%emt 0:01:26]} g4 {[%emt 0:00:13]} 46. fxg4+ {[%emt 0:00:22]} Kxg4 {[%emt 0:00:01]} 47. Kd4 {[%emt 0:00:13]} Kf5 {[%emt 0:00:18]} 48. Bc7 {[%emt 0:01:04]} Ke6 {[%emt 0:00:11]} 49. Kc5 {[%emt 0:00:07]} Kd7 {[%emt 0:00:14]} 50. Kb6 {[%emt 0:00:11]} Kc8 {[%emt 0:01:04]} 51. b4 {[%emt 0:00:13]} f5 {[%emt 0:00:29]} 52. Bf4 {[%emt 0:00:08]} Be8 {[%emt 0:00:29]} 53. Ka6 {[%emt 0:00:05]} Ba4 {[%emt 0:00:57]} 54. Ka5 {[%emt 0:00:22]} Be8 {[%emt 0:00:12]} 55. Kb6 {[%emt 0:00:37]} Ba4 {[%emt 0:00:10]} 56. Ka7 {[%emt 0:00:06]} Be8 {[%emt 0:00:17]} 57. Ka6 {[%emt 0:00:03]} Ba4 {[%emt 0:00:08]} 58. b5 {[%emt 0:00:06]} Bxb5+ {[%emt 0:00:19]} 59. Kxb5 {[%emt 0:00:09]} 1/2-1/2

[Event "21st Open Gran Hotel Bali-A 2024"]
[Site "Benidorm"]
[Date "2024.11.30"]
[Round "3.5"]
[White "Ilinca, Felix-Antonio"]
[Black "Carbonell Sancho, Marc"]
[Result "0-1"]
[ECO "B57"]
[WhiteElo "2470"]
[BlackElo "2286"]
[Annotator "ChessBase"]
[PlyCount "64"]
[EventDate "2024.11.26"]
[EventType "swiss"]
[EventCountry "ESP"]
[SourceTitle "playchess.com"]
[Source "ChessBase"]
[SourceQuality "1"]
[TimeControl "5400+30"]

1. e4 {[%emt 0:01:56]} c5 {[%emt 0:04:01]} 2. Nf3 {[%emt 0:00:41]} d6 {[%emt 0:00:09]} 3. d4 {[%emt 0:00:30]} cxd4 {[%emt 0:00:06]} 4. Nxd4 {[%emt 0:00:20]} Nf6 {[%emt 0:00:12]} 5. Nc3 {[%emt 0:00:30]} Nc6 {[%emt 0:00:10]} 6. Bc4 {[%emt 0:01:10]} Qb6 {[%emt 0:00:11]} 7. Nxc6 {[%emt 0:00:57]} bxc6 {[%emt 0:00:06]} 8. b3 {[%emt 0:00:48]} e6 {[%emt 0:07:39]} 9. O-O {[%emt 0:01:43]} Be7 {[%emt 0:00:07]} 10. Qe2 {[%emt 0:02:07]} d5 {[%emt 0:07:54]} 11. Bd3 {[%emt 0:10:24]} Bb7 {[%emt 0:01:38]} 12. Bb2 {[%emt 0:04:11]} O-O {[%emt 0:12:58]} 13. Rfe1 {[%emt 0:06:29]} Rfe8 {[%emt 0:03:10]} 14. Na4 {[%emt 0:06:00]} Qc7 {[%emt 0:03:23]} 15. e5 {[%emt 0:11:11]} Nd7 {[%emt 0:00:39]} 16. c4 {[%emt 0:01:40]} dxc4 {[%emt 0:09:34]} 17. Bxc4 {[%emt 0:00:43]} Nb6 {[%emt 0:00:35]} 18. Bd3 {[%emt 0:06:48]} Nxa4 {[%emt 0:00:52]} 19. Qe4 {[%emt 0:00:54]} g6 {[%emt 0:00:17]} 20. Qxa4 {[%emt 0:00:17]} Red8 {[%emt 0:00:31]} 21. Bf1 {[%emt 0:04:47]} Qb6 {[%emt 0:04:33]} 22. Bc3 {[%emt 0:09:24]} Bc5 {[%emt 0:07:36]} 23. Qf4 {[%emt 0:04:49]} Bd4 {[%emt 0:02:23]} 24. Bxd4 {[%emt 0:03:51]} Rxd4 {[%emt 0:01:59]} 25. Qh6 {[%emt 0:09:17]} Rad8 {[%emt 0:05:11]} 26. Re3 {[%emt 0:02:56]} Rd2 {[%emt 0:00:06]} 27. Rf3 {[%emt 0:03:23]} R8d7 {[%emt 0:10:43]} 28. Re1 {[%emt 0:02:01]} Rxa2 {[%emt 0:01:39]} 29. h4 {[%emt 0:01:03]} Qb4 {[%emt 0:00:34]} 30. h5 {[%emt 0:02:40]} Qxe1 {[%emt 0:01:57]} 31. hxg6 {[%emt 0:00:04]} hxg6 {[%emt 0:00:46]} 32. Rh3 {[%emt 0:01:12]} Qxe5 {[%emt 0:00:13]} 0-1

[Event "21st Open Gran Hotel Bali-A 2024"]
[Site "Benidorm"]
[Date "2024.11.30"]
[Round "3.6"]
[White "Travesset Sagre, Jan"]
[Black "Mitusov, Semen"]
[Result "0-1"]
[ECO "E06"]
[WhiteElo "2330"]
[BlackElo "2465"]
[Annotator "ChessBase"]
[PlyCount "32"]
[EventDate "2024.11.26"]
[EventType "swiss"]
[EventCountry "ESP"]
[SourceTitle "playchess.com"]
[Source "ChessBase"]
[SourceQuality "1"]
[TimeControl "5400+30"]

1. d4 {[%emt 0:05:18]} d5 {[%emt 0:01:35]} 2. c4 {[%emt 0:00:06]} e6 {[%emt 0:00:04]} 3. g3 {[%emt 0:00:13]} Nf6 {[%emt 0:00:49]} 4. Bg2 {[%emt 0:00:05]} Be7 {[%emt 0:00:33]} 5. Nf3 {[%emt 0:00:12]} Ne4 {[%emt 0:00:55]} 6. O-O {[%emt 1:27:36]} f5 {[%emt 0:00:17]} 7. b3 {[%emt 0:00:00]} Nc6 {[%emt 0:00:42]} 8. e3 {[%emt 0:00:00]} h5 {[%emt 0:00:31]} 9. Ba3 {[%emt 0:00:00]} Bf6 {[%emt 0:01:23]} 10. h4 {[%emt 0:00:00]} g5 {[%emt 0:04:50]} 11. hxg5 {[%emt 0:00:00]} Bxg5 {[%emt 0:02:25]} 12. Nxg5 {[%emt 0:00:00]} Qxg5 {[%emt 0:01:07]} 13. Bxe4 {[%emt 0:00:00]} fxe4 {[%emt 0:01:28]} 14. Kh2 {[%emt 0:00:00]} e5 {[%emt 0:09:08]} 15. cxd5 {[%emt 0:00:00]} Bg4 {[%emt 0:02:50]} 16. f3 {[%emt 0:00:00]} h4 {[%emt 0:02:04]} 0-1

[Event "21st Open Gran Hotel Bali-A 2024"]
[Site "Benidorm"]
[Date "2024.11.30"]
[Round "3.7"]
[White "Mingarro Carceller, Sergi"]
[Black "Marin, Mihail"]
[Result "1-0"]
[ECO "C02"]
[WhiteElo "2299"]
[BlackElo "2431"]
[Annotator "TA"]
[PlyCount "67"]
[EventDate "2024.11.26"]
[EventType "swiss"]
[EventCountry "ESP"]
[SourceTitle "playchess.com"]
[Source "ChessBase"]
[SourceQuality "1"]
[TimeControl "5400+30"]

{[%evp 19,67,0,0,-13,16,12,26,21,25,18,22,0,13,0,0,0,0,0,63,42,41,-16,0,-8,0,0,60,44,62,36,89,86,79,70,88,97,114,90,99,82,93,86,171,146,139,112,160,110,160,145]} 1. e4 {[%emt 0:00:12]} e6 {[%emt 0:00:40]} 2. d4 {[%emt 0:00:10]} d5 {[%emt 0:00:05]} 3. e5 {[%emt 0:00:14]} c5 {[%emt 0:00:08]} 4. c3 {[%emt 0:00:07]} Nc6 {[%emt 0:00:03]} 5. Nf3 {[%emt 0:00:28]} Bd7 {[%emt 0:00:23]} 6. Be2 {[%emt 0:00:35]} cxd4 {[%emt 0:03:58]} 7. cxd4 {[%emt 0:00:16]} Nge7 {[%emt 0:00:04]} 8. Na3 {[%emt 0:01:18]} Nf5 {[%emt 0:00:22]} 9. Nc2 {[%emt 0:00:11]} Qb6 {[%emt 0:01:50]} 10. O-O {[%emt 0:01:05]} Rc8 {[%emt 0:00:12]} 11. Kh1 {[%emt 0:02:09]} h5 {[%emt 0:22:24]} 12. Bd3 {[%emt 0:05:29]} Be7 {[%emt 0:07:29]} 13. Rb1 {[%emt 0:07:05] White has an edge.} Nb4 {[%emt 0:05:12]} (13... Ncxd4 $2 14. Nfxd4 Nxd4 15. Be3 $18) (13... Nfxd4 $2 14. Ncxd4 (14. Be3 Qc7 $18) 14... Qd8 (14... Nxd4 $2 15. Be3 $18) 15. Be3 $18) 14. Nxb4 {[%emt 0:03:57]} Qxb4 {[%emt 0:00:10]} 15. Bxf5 {[%emt 0:03:07]} exf5 {[%emt 0:00:05]} 16. Bg5 {[%emt 0:00:34]} Bxg5 $1 {[%emt 0:06:47]} 17. Nxg5 {[%emt 0:00:26]} Rc4 $1 {[%emt 0:01:34]} 18. Nf3 {[%emt 0:04:14]} Rh6 {[%emt 0:02:23]} (18... O-O $11) 19. b3 {[%emt 0:06:02]} Rc8 {[%emt 0:03:08]} 20. Re1 {[%emt 0:02:47] White is weak on the light squares} (20. Ng5 $14) 20... f4 $11 {[%emt 0:11:02]} 21. Ng5 {[%emt 0:13:53] aiming for Qf3.} Bf5 {[%emt 0:07:03]} 22. Ra1 {[%emt 0:07:01]} Qc3 {[%emt 0:06:06]} (22... Bg4 $1 $11 23. f3 Bf5) 23. Qe2 $14 {[%emt 0:03:12]} a6 {[%emt 0:03:24]} 24. e6 {[%emt 0:05:38]} fxe6 {[%emt 0:04:33]} ({Better is} 24... Bxe6 $14 25. Qe5 Rg6) 25. Qe5 $16 {[%emt 0:02:02][%csl LRd5,LRf4,LRf5,LRg7]} Rf6 {[%emt 0:00:11]} 26. Qxf4 {[%emt 0:04:47] [#] Hoping for Rac1.} (26. Qxd5 $2 Qxa1 27. Qe5 Qxa2 $19) 26... Qc7 {[%emt 0:04:17]} 27. Qh4 {[%emt 0:06:24] White is more active.} Ke7 {[%emt 0:03:30]} 28. h3 {[%emt 0:02:27][%cal Oe1e5]} (28. Qxh5 Qf4 29. f3 Qb8 $17) 28... Qc3 {[%emt 0:03:38]} 29. Rad1 $36 {[%emt 0:03:01][%mdl 2048] White is really pushing.} ({Reject} 29. Qxh5 $6 Qxd4 30. Qd1 Qxf2 31. Qxd5 Qf1+ 32. Kh2 (32. Rxf1 exd5 33. Rae1+ Kd6 $11) 32... Qf4+ 33. Kg1 Qf1+ (33... Qxg5 $2 34. Qxb7+ Ke8 35. Qxc8+ $18) 34. Kh2 Qf4+ 35. Kg1 Qf1+ (35... Qxg5 $2 36. Qxb7+ Kf8 37. Qxc8+ $18) 36. Kh2 $11) 29... Qb2 {[%emt 0:01:05]} 30. Qg3 {[%emt 0:11:05][%cal Og5e6] And now Nxe6! would win.} (30. Qxh5 Qxf2 31. Rf1 Qe3 $15) 30... Qc3 {[%emt 0:02:03]} (30... Kf8 $16) 31. Re3 {[%emt 0:00:19]} Qc7 {[%emt 0:00:56]} 32. Re5 {[%emt 0:01:01][%cal Og5e6] Strongly threatening Nxe6!} Kd7 {[%emt 0:00:53]} ({Black should try} 32... Qd6) 33. Rde1 {[%emt 0:01:30]} (33. Ne4 $142 Rg6 34. Nc5+ (34. Rxf5 Qxg3 35. Rf7+ Ke8 $14) 34... Qxc5 35. Qxg6 (35. dxc5 Rxg3 36. fxg3 Rxc5 $15) 35... Bxg6 36. dxc5) 33... Qc3 {[%emt 0:00:23]} (33... Qd6 $142) 34. Qh4 {[%emt 0:01:30] Weighted Error Value: White=0.17 (very precise) /Black=0.23 (precise) .  Mistake:       	White=2     	Black=6      Inaccurate:     	White=1     	Black=1      OK:         	White=6     	Black=5      Best:        	White=1     	Black=1      Strong:       	---       	Black=2} 1-0